{"text_format":"1","workbook":"xlsx","n_sheets":1,"sheets":["Лист1"],"not_rendered":{"charts":0,"images":0,"macros":1,"external_links":0,"defined_names":0,"comments":0,"pivot_tables":0},"unopened":[],"bounds":{"document_bytes":16777216,"sheet_cells":100000,"rows_first":2000,"rows_last":500,"rows_between":2000,"halvings":0,"cell_chars":16384,"cell_head_chars":4096},"cells_cut":0,"cells_raw":0,"read":"whole","date_system":"1900"}

{"sheet":"Лист1","index":0,"n_rows":23,"n_cols":10,"rows_kept":23,"cut":false,"hidden":false,"merged":[[21,1,21,3],[16,1,16,3],[2,1,2,3],[8,1,8,3]]}
["Исходные данные ",null,null,null,null,null,"Необходимые данные консолидировать в разрезе контрагентов"]
["Номенклатура","Сумма продажи","Сумма в закупочных ценах","Маржа",null,null,null,"Сумма продажи","Сумма в закупочных ценах","Маржа"]
["Реализация товаров и услуг VT000000710 от 18.08.2016 10:47:52","Седов Игорь Витович ИП",null,null,{"$f":"IF(ISNUMBER(B3),E2,B3)","v":"Седов Игорь Витович ИП"},null,"Седов Игорь Витович ИП",{"$f":"SUMIF(E3:E23,G3,B3:B23)","v":187481.18000000002},147628.12,{"$f":"H3-I3","v":39853.060000000027}]
["Heisskraft Труба Phaser  стекловолокно 40х5,5",62060.14,49254.080000000002,12806.06,"Седов Игорь Витович ИП",null,"Теплоснабжение МР",{"$f":"SUMIF(E4:E24,G4,B4:B24)","v":107646.98999999999},101183.73,{"$f":"H4-I4","v":6463.2599999999948}]
["Heisskraft Труба  40х6,7 ПН 20",102200.92,81111.839999999997,21089.08,"Седов Игорь Витович ИП"]
["Заглушка канализ.Ostendorf 110 (П/П)",3816.72,2827.2,989.52,"Седов Игорь Витович ИП"]
["Заглушка канализ.Ostendorf 50 (П/П)",1268.46,939.6,328.86,"Седов Игорь Витович ИП"]
["Крест 1пл пр 110-110-110  90 гр.",17652.82,13076.16,4576.66,"Седов Игорь Витович ИП"]
["Реализация товаров и услуг VT000000719 от 18.08.2016 11:21:52","Теплоснабжение МР",null,null,{"$f":"IF(ISNUMBER(B9),E8,B9)","v":"Теплоснабжение МР"}]
["Муфта с нак.гайкой 20х1/2\"Tebo",1589.59,1382.25,207.34,{"$f":"IF(ISNUMBER(B10),E9,B10)","v":"Теплоснабжение МР"}]
["Тройник сварной  20",47.04,40.9,6.14,"Теплоснабжение МР"]
["Труба 20х3,4 PN20 стекловолокно",1389.2,1208,181.2,"Теплоснабжение МР"]
["Уголок св. 90*  20",132.47999999999999,115.2,17.28,"Теплоснабжение МР"]
["Уголок св.45*  20",47.44,41.25,6.19,"Теплоснабжение МР"]
["Fora Муфта комб. вн.р. 20х1/2\"",833.18,724.5,108.68,"Теплоснабжение МР"]
["Fora Муфта комб. нар.р.20х1/2\"",453.5,394.35,59.15,"Теплоснабжение МР"]
["Реализация товаров и услуг VT000000724 от 19.08.2016 15:17:53","Седов Игорь Витович ИП",null,null,"Седов Игорь Витович ИП"]
["Клемма ЗНИ-4 мм.кв.серый (IEK)",71.7,62.35,9.35,"Седов Игорь Витович ИП"]
["Реле миниатюрное РСВ выводы с шангом 5мм 2 группы контактов 8А катушка DC",147.74,128.47,19.27,{"$f":"IF(ISNUMBER(B19),E18,B19)","v":"Седов Игорь Витович ИП"}]
["Розетка с винтовыми клеммами  с зажиами клеткой",158.69999999999999,138,20.7,"Седов Игорь Витович ИП"]
["Коробка распределительная 100х100х50мм для наружного монтажа IP55",103.98,90.42,13.56,"Седов Игорь Витович ИП"]
["Реализация товаров и услуг VT000000730 от 22.08.2016 15:57:14","Теплоснабжение МР",null,null,"Теплоснабжение МР"]
["Baxi ECO Compact 24 F котел газ. настен./двухконт. турб.",103154.56,97277.28,5877.28,"Теплоснабжение МР"]